[Event "Titled Tuesday Blitz January 03 Late 2023"]
[White "Tristan, Leonardo"]
[Black "Seletsky, Grigory"]
[WhiteFideId "113816"]
[BlackFideId "14112191"]
[WhiteElo "2545"]
[BlackElo "2259"]
[Result "1-0"]
[Round "01"]
[TimeControl "180+2"]
[Date "2023.01.03"]
[WhiteClock "0:00:07"]
[BlackClock "0:00:11"]

1. d4 {[%clk 0:03:00]}  d5 {[%clk 0:02:58]} 2. Nf3 {[%clk 0:03:01]}  Bf5 {[%clk 0:02:55]} 3. Bf4 {[%clk 0:03:01]}  e6 {[%clk 0:02:55]} 4. e3 {[%clk 0:03:01]}  c6 {[%clk 0:02:54]} 5. c4 {[%clk 0:03:01]}  Bxb1 {[%clk 0:02:49]} 6. Qxb1 {[%clk 0:02:56]}  Bb4+ {[%clk 0:02:49]} 7. Kd1 {[%clk 0:02:56]}  Nf6 {[%clk 0:02:46]} 8. Bd3 {[%clk 0:02:46]}  O-O {[%clk 0:02:43]} 9. Ke2 {[%clk 0:02:47]}  Bd6 {[%clk 0:02:41]} 10. Ne5 {[%clk 0:02:41]}  h6 {[%clk 0:02:32]} 11. h3 {[%clk 0:02:29]}  Bxe5 {[%clk 0:02:24]} 12. Bxe5 {[%clk 0:02:27]}  Nbd7 {[%clk 0:02:19]} 13. Bg3 {[%clk 0:02:19]}  Re8 {[%clk 0:02:19]} 14. cxd5 {[%clk 0:02:19]}  Nxd5 {[%clk 0:02:15]} 15. Rd1 {[%clk 0:02:15]}  e5 {[%clk 0:02:13]} 16. dxe5 {[%clk 0:01:50]}  Nxe5 {[%clk 0:02:11]} 17. Be4 {[%clk 0:01:51]}  Qa5 {[%clk 0:01:58]} 18. Kf1 {[%clk 0:01:51]}  Rad8 {[%clk 0:01:53]} 19. Kg1 {[%clk 0:01:51]}  Nc4 {[%clk 0:01:48]} 20. Qc2 {[%clk 0:01:35]}  Ncb6 {[%clk 0:01:27]} 21. a3 {[%clk 0:01:26]}  Qa4 {[%clk 0:01:26]} 22. Bh7+ {[%clk 0:01:17]}  Kh8 {[%clk 0:01:25]} 23. Rd4 {[%clk 0:01:18]}  Qxc2 {[%clk 0:01:23]} 24. Bxc2 {[%clk 0:01:19]}  Nf6 {[%clk 0:01:17]} 25. Rad1 {[%clk 0:01:17]}  Rxd4 {[%clk 0:01:16]} 26. Rxd4 {[%clk 0:01:18]}  Nbd5 {[%clk 0:01:14]} 27. b4 {[%clk 0:01:16]}  a6 {[%clk 0:01:14]} 28. Kf1 {[%clk 0:01:15]}  Kg8 {[%clk 0:01:13]} 29. Ke1 {[%clk 0:01:06]}  g5 {[%clk 0:01:10]} 30. Kd2 {[%clk 0:01:05]}  Kg7 {[%clk 0:01:09]} 31. e4 {[%clk 0:00:50]}  Ne7 {[%clk 0:00:59]} 32. e5 {[%clk 0:00:30]}  Nfd5 {[%clk 0:00:56]} 33. Be4 {[%clk 0:00:30]}  f5 {[%clk 0:00:50]} 34. exf6+ {[%clk 0:00:23]}  Kxf6 {[%clk 0:00:48]} 35. Rd3 {[%clk 0:00:11]}  Ke6 {[%clk 0:00:43]} 36. h4 {[%clk 0:00:09]}  Rf8 {[%clk 0:00:41]} 37. hxg5 {[%clk 0:00:09]}  hxg5 {[%clk 0:00:41]} 38. Bf3 {[%clk 0:00:09]}  Rh8 {[%clk 0:00:32]} 39. Bg4+ {[%clk 0:00:10]}  Kf6 {[%clk 0:00:30]} 40. Rf3+ {[%clk 0:00:09]}  Kg6 {[%clk 0:00:28]} 41. Be5 {[%clk 0:00:09]}  Rh1 {[%clk 0:00:27]} 42. Rf8 {[%clk 0:00:08]}  Ra1 {[%clk 0:00:25]} 43. Bxa1 {[%clk 0:00:08]}  Nf4 {[%clk 0:00:23]} 44. g3 {[%clk 0:00:08]}  Nfd5 {[%clk 0:00:21]} 45. Bf3 {[%clk 0:00:08]}  Nb6 {[%clk 0:00:19]} 46. Be4+ {[%clk 0:00:08]}  Kh5 {[%clk 0:00:15]} 47. f3 {[%clk 0:00:08]}  g4 {[%clk 0:00:14]} 48. f4 {[%clk 0:00:08]}  Nbd5 {[%clk 0:00:11]} 49. Rh8# {[%clk 0:00:07]} 1-0


[Site "https://www.chess.com"]

[Event "Titled Tuesday Blitz January 03 Late 2023"]
[White "Zilleruelo Irizarry, Diego"]
[Black "Nazari, Arad"]
[WhiteFideId "3101460"]
[BlackFideId "12577324"]
[WhiteElo "2135"]
[BlackElo "2367"]
[Result "1/2-1/2"]
[Round "01"]
[TimeControl "180+2"]
[Date "2023.01.03"]
[WhiteClock "0:00:21"]
[BlackClock "0:00:12"]

1. e4 {[%clk 0:02:59]}  c5 {[%clk 0:02:59]} 2. Nf3 {[%clk 0:02:59]}  d6 {[%clk 0:02:59]} 3. d4 {[%clk 0:02:59]}  cxd4 {[%clk 0:03:00]} 4. Qxd4 {[%clk 0:02:59]}  Nc6 {[%clk 0:03:00]} 5. Qe3 {[%clk 0:02:59]}  Nf6 {[%clk 0:02:59]} 6. h3 {[%clk 0:02:59]}  e5 {[%clk 0:02:59]} 7. Be2 {[%clk 0:02:58]}  Be7 {[%clk 0:03:00]} 8. O-O {[%clk 0:02:59]}  O-O {[%clk 0:03:00]} 9. c4 {[%clk 0:02:59]}  Be6 {[%clk 0:03:01]} 10. Nc3 {[%clk 0:02:59]}  Rc8 {[%clk 0:03:01]} 11. b3 {[%clk 0:03:00]}  a6 {[%clk 0:03:00]} 12. Bb2 {[%clk 0:03:00]}  Nd7 {[%clk 0:02:52]} 13. Rfd1 {[%clk 0:02:57]}  Qb6 {[%clk 0:02:25]} 14. Qxb6 {[%clk 0:02:46]}  Nxb6 {[%clk 0:01:53]} 15. Rac1 {[%clk 0:02:45]}  Rfd8 {[%clk 0:01:51]} 16. Nd5 {[%clk 0:02:44]}  Bxd5 {[%clk 0:01:48]} 17. cxd5 {[%clk 0:02:34]}  Nb8 {[%clk 0:01:48]} 18. a4 {[%clk 0:02:21]}  Rxc1 {[%clk 0:01:47]} 19. Rxc1 {[%clk 0:02:21]}  Rc8 {[%clk 0:01:48]} 20. a5 {[%clk 0:02:17]}  Rxc1+ {[%clk 0:01:47]} 21. Bxc1 {[%clk 0:02:18]}  N6d7 {[%clk 0:01:47]} 22. Be3 {[%clk 0:02:18]}  Bd8 {[%clk 0:01:47]} 23. b4 {[%clk 0:02:18]}  b6 {[%clk 0:01:45]} 24. axb6 {[%clk 0:02:15]}  Bxb6 {[%clk 0:01:46]} 25. Bxb6 {[%clk 0:02:02]}  Nxb6 {[%clk 0:01:47]} 26. Nd2 {[%clk 0:02:00]}  Kf8 {[%clk 0:01:47]} 27. Nc4 {[%clk 0:02:00]}  Nxc4 {[%clk 0:01:47]} 28. Bxc4 {[%clk 0:02:01]}  Ke7 {[%clk 0:01:47]} 29. Kf1 {[%clk 0:02:01]}  Kd7 {[%clk 0:01:48]} 30. Ke2 {[%clk 0:02:02]}  Kc7 {[%clk 0:01:48]} 31. g3 {[%clk 0:01:57]}  Kb6 {[%clk 0:01:49]} 32. f4 {[%clk 0:01:56]}  f6 {[%clk 0:01:46]} 33. fxe5 {[%clk 0:01:56]}  fxe5 {[%clk 0:01:45]} 34. Kf3 {[%clk 0:01:55]}  a5 {[%clk 0:01:42]} 35. bxa5+ {[%clk 0:01:54]}  Kxa5 {[%clk 0:01:42]} 36. Kg4 {[%clk 0:01:54]}  Kb4 {[%clk 0:01:43]} 37. Be2 {[%clk 0:01:51]}  Nd7 {[%clk 0:01:09]} 38. Kf5 {[%clk 0:01:52]}  Nc5 {[%clk 0:01:09]} 39. h4 {[%clk 0:01:43]}  Kc3 {[%clk 0:01:10]} 40. h5 {[%clk 0:01:29]}  Kd4 {[%clk 0:01:08]} 41. Bf3 {[%clk 0:01:27]}  Ke3 {[%clk 0:01:06]} 42. Bh1 {[%clk 0:01:28]}  Kf2 {[%clk 0:00:47]} 43. g4 {[%clk 0:01:28]}  Kg3 {[%clk 0:00:48]} 44. g5 {[%clk 0:01:26]}  Kh4 {[%clk 0:00:48]} 45. Bf3 {[%clk 0:01:21]}  Kg3 {[%clk 0:00:45]} 46. Bh1 {[%clk 0:01:21]}  Kf2 {[%clk 0:00:42]} 47. h6 {[%clk 0:01:13]}  gxh6 {[%clk 0:00:41]} 48. gxh6 {[%clk 0:01:13]}  Ke3 {[%clk 0:00:42]} 49. Bg2 {[%clk 0:01:04]}  Kd4 {[%clk 0:00:42]} 50. Bf3 {[%clk 0:01:03]}  Nb3 {[%clk 0:00:36]} 51. Ke6 {[%clk 0:01:00]}  Nd2 {[%clk 0:00:34]} 52. Bh1 {[%clk 0:00:55]}  Nxe4 {[%clk 0:00:25]} 53. Bxe4 {[%clk 0:00:56]}  Kxe4 {[%clk 0:00:26]} 54. Kxd6 {[%clk 0:00:57]}  Kf5 {[%clk 0:00:25]} 55. Kc6 {[%clk 0:00:55]}  e4 {[%clk 0:00:26]} 56. d6 {[%clk 0:00:56]}  e3 {[%clk 0:00:26]} 57. d7 {[%clk 0:00:56]}  e2 {[%clk 0:00:27]} 58. d8=Q {[%clk 0:00:57]}  e1=Q {[%clk 0:00:28]} 59. Qf8+ {[%clk 0:00:57]}  Kg5 {[%clk 0:00:26]} 60. Qg7+ {[%clk 0:00:57]}  Kh5 {[%clk 0:00:26]} 61. Qxh7 {[%clk 0:00:55]}  Qe6+ {[%clk 0:00:27]} 62. Kc5 {[%clk 0:00:54]}  Qe5+ {[%clk 0:00:25]} 63. Kc6 {[%clk 0:00:54]}  Qc3+ {[%clk 0:00:25]} 64. Kd5 {[%clk 0:00:50]}  Qb3+ {[%clk 0:00:25]} 65. Kd6 {[%clk 0:00:50]}  Qb6+ {[%clk 0:00:25]} 66. Ke5 {[%clk 0:00:49]}  Qc5+ {[%clk 0:00:25]} 67. Kf6 {[%clk 0:00:46]}  Qd6+ {[%clk 0:00:23]} 68. Kf7 {[%clk 0:00:44]}  Qd7+ {[%clk 0:00:23]} 69. Kg8 {[%clk 0:00:44]}  Qe8+ {[%clk 0:00:23]} 70. Kg7 {[%clk 0:00:43]}  Kg5 {[%clk 0:00:24]} 71. Qg8 {[%clk 0:00:37]}  Qe7+ {[%clk 0:00:20]} 72. Qf7 {[%clk 0:00:24]}  Qe5+ {[%clk 0:00:13]} 73. Kg8 {[%clk 0:00:24]}  Kxh6 {[%clk 0:00:11]} 74. Qh7+ {[%clk 0:00:23]}  Kg5 {[%clk 0:00:12]} 75. Qg7+ {[%clk 0:00:23]}  Kf5 {[%clk 0:00:11]} 76. Qxe5+ {[%clk 0:00:21]}  Kxe5 {[%clk 0:00:12]} 1/2-1/2


[Site "https://www.chess.com"]

[Event "Titled Tuesday Blitz January 03 Late 2023"]
[White "Estrada Nieto, Julian"]
[Black "Papasimakopoulos, Alexandros"]
[WhiteFideId "5101018"]
[BlackFideId "4244125"]
[WhiteElo "2215"]
[BlackElo "2401"]
[Result "0-1"]
[Round "01"]
[TimeControl "180+2"]
[Date "2023.01.03"]
[WhiteClock "0:00:10"]
[BlackClock "0:00:35"]

1. e4 {[%clk 0:03:00]}  e6 {[%clk 0:02:59]} 2. d4 {[%clk 0:03:00]}  d5 {[%clk 0:02:59]} 3. Nd2 {[%clk 0:03:00]}  Nf6 {[%clk 0:02:59]} 4. e5 {[%clk 0:03:01]}  Nfd7 {[%clk 0:03:00]} 5. Bd3 {[%clk 0:03:01]}  c5 {[%clk 0:03:00]} 6. c3 {[%clk 0:03:02]}  Nc6 {[%clk 0:03:01]} 7. Ne2 {[%clk 0:03:02]}  cxd4 {[%clk 0:03:01]} 8. cxd4 {[%clk 0:03:03]}  f6 {[%clk 0:03:02]} 9. exf6 {[%clk 0:03:04]}  Nxf6 {[%clk 0:03:02]} 10. Nf3 {[%clk 0:03:05]}  Bd6 {[%clk 0:03:03]} 11. O-O {[%clk 0:03:05]}  Qc7 {[%clk 0:03:03]} 12. Bg5 {[%clk 0:03:05]}  O-O {[%clk 0:03:04]} 13. Bh4 {[%clk 0:03:05]}  Nh5 {[%clk 0:03:04]} 14. Qc2 {[%clk 0:03:05]}  h6 {[%clk 0:03:04]} 15. Bh7+ {[%clk 0:02:58]}  Kh8 {[%clk 0:03:04]} 16. Bg6 {[%clk 0:02:58]}  Rxf3 {[%clk 0:03:04]} 17. gxf3 {[%clk 0:02:57]}  Bxh2+ {[%clk 0:03:05]} 18. Kg2 {[%clk 0:02:57]}  Nf4+ {[%clk 0:03:04]} 19. Nxf4 {[%clk 0:02:57]}  Bxf4 {[%clk 0:03:01]} 20. Bg3 {[%clk 0:02:54]}  Qd6 {[%clk 0:03:01]} 21. Be8 {[%clk 0:02:20]}  Nxd4 {[%clk 0:02:54]} 22. Qg6 {[%clk 0:02:09]}  Nf5 {[%clk 0:02:53]} 23. Rh1 {[%clk 0:01:44]}  Bxg3 {[%clk 0:02:19]} 24. fxg3 {[%clk 0:01:43]}  Bd7 {[%clk 0:02:17]} 25. Bxd7 {[%clk 0:01:38]}  Qxd7 {[%clk 0:02:18]} 26. g4 {[%clk 0:01:32]}  Ne7 {[%clk 0:02:06]} 27. Qf7 {[%clk 0:01:22]}  e5 {[%clk 0:01:58]} 28. Rh5 {[%clk 0:00:59]}  Qd6 {[%clk 0:01:54]} 29. Rah1 {[%clk 0:00:56]}  Ng8 {[%clk 0:01:53]} 30. g5 {[%clk 0:00:53]}  Rf8 {[%clk 0:01:46]} 31. Qxb7 {[%clk 0:00:53]}  e4 {[%clk 0:01:44]} 32. R1h3 {[%clk 0:00:44]}  exf3+ {[%clk 0:01:27]} 33. Rxf3 {[%clk 0:00:44]}  Rxf3 {[%clk 0:01:25]} 34. Kxf3 {[%clk 0:00:45]}  Qf8+ {[%clk 0:01:24]} 35. Kg4 {[%clk 0:00:41]}  Qc5 {[%clk 0:01:12]} 36. Qb8 {[%clk 0:00:34]}  Qd4+ {[%clk 0:01:07]} 37. Kh3 {[%clk 0:00:30]}  Qd3+ {[%clk 0:01:02]} 38. Qg3 {[%clk 0:00:29]}  Qf5+ {[%clk 0:01:02]} 39. Qg4 {[%clk 0:00:27]}  Qf1+ {[%clk 0:01:01]} 40. Qg2 {[%clk 0:00:27]}  Qd3+ {[%clk 0:01:01]} 41. Kh2 {[%clk 0:00:25]}  Qd1 {[%clk 0:00:59]} 42. Rh3 {[%clk 0:00:24]}  Qe1 {[%clk 0:00:52]} 43. g6 {[%clk 0:00:15]}  Qe5+ {[%clk 0:00:51]} 44. Kh1 {[%clk 0:00:15]}  d4 {[%clk 0:00:47]} 45. Rb3 {[%clk 0:00:15]}  Qh5+ {[%clk 0:00:44]} 46. Kg1 {[%clk 0:00:14]}  Qd1+ {[%clk 0:00:43]} 47. Kh2 {[%clk 0:00:14]}  Qh5+ {[%clk 0:00:43]} 48. Kg1 {[%clk 0:00:15]}  Qc5 {[%clk 0:00:41]} 49. Rb8 {[%clk 0:00:13]}  d3+ {[%clk 0:00:41]} 50. Qf2 {[%clk 0:00:13]}  Qg5+ {[%clk 0:00:38]} 51. Qg2 {[%clk 0:00:13]}  d2 {[%clk 0:00:35]} 52. Qxg5 {[%clk 0:00:10]}  d1=Q+ {[%clk 0:00:35]} 53. Kg2 {[%clk 0:00:10]}  hxg5 {[%clk 0:00:35]} 54. Rb3 {[%clk 0:00:11]}  Qc2+ {[%clk 0:00:35]} 55. Kh3 {[%clk 0:00:10]}  Qxg6 {[%clk 0:00:35]} 0-1


[Site "https://www.chess.com"]

[Event "Titled Tuesday Blitz January 03 Late 2023"]
[White "Olenik Campa, Rudi"]
[Black "Korchmar, Vasiliy"]
[WhiteFideId "14633264"]
[BlackFideId "24131750"]
[WhiteElo "2356"]
[BlackElo "2438"]
[Result "0-1"]
[Round "01"]
[TimeControl "180+2"]
[Date "2023.01.03"]
[WhiteClock "0:00:02"]
[BlackClock "0:00:17"]

1. e4 {[%clk 0:02:55]}  c5 {[%clk 0:02:59]} 2. Nf3 {[%clk 0:02:54]}  d6 {[%clk 0:02:59]} 3. d4 {[%clk 0:02:54]}  cxd4 {[%clk 0:03:00]} 4. Nxd4 {[%clk 0:02:54]}  Nf6 {[%clk 0:03:00]} 5. f3 {[%clk 0:02:55]}  e5 {[%clk 0:03:00]} 6. Nb3 {[%clk 0:02:55]}  Be6 {[%clk 0:03:01]} 7. c4 {[%clk 0:02:55]}  Nbd7 {[%clk 0:03:01]} 8. Be3 {[%clk 0:02:52]}  Rc8 {[%clk 0:03:02]} 9. Nc3 {[%clk 0:02:52]}  Bxc4 {[%clk 0:03:02]} 10. Bxc4 {[%clk 0:02:53]}  Rxc4 {[%clk 0:03:02]} 11. Qd3 {[%clk 0:02:53]}  Rc8 {[%clk 0:03:01]} 12. g4 {[%clk 0:02:54]}  d5 {[%clk 0:02:24]} 13. exd5 {[%clk 0:02:49]}  Bb4 {[%clk 0:02:18]} 14. h3 {[%clk 0:01:46]}  O-O {[%clk 0:02:09]} 15. O-O {[%clk 0:01:44]}  Bxc3 {[%clk 0:02:03]} 16. bxc3 {[%clk 0:01:44]}  Nb6 {[%clk 0:01:58]} 17. Bxb6 {[%clk 0:01:15]}  Qxb6+ {[%clk 0:01:59]} 18. Kg2 {[%clk 0:01:16]}  Rfd8 {[%clk 0:01:24]} 19. c4 {[%clk 0:01:15]}  Nd7 {[%clk 0:01:24]} 20. Rfe1 {[%clk 0:01:13]}  Nf8 {[%clk 0:01:11]} 21. c5 {[%clk 0:00:53]}  Qf6 {[%clk 0:01:07]} 22. d6 {[%clk 0:00:44]}  Ng6 {[%clk 0:01:06]} 23. Qe4 {[%clk 0:00:44]}  b6 {[%clk 0:01:03]} 24. Rac1 {[%clk 0:00:17]}  bxc5 {[%clk 0:01:02]} 25. Nxc5 {[%clk 0:00:17]}  Qxd6 {[%clk 0:00:46]} 26. Nb3 {[%clk 0:00:16]}  Rxc1 {[%clk 0:00:32]} 27. Rxc1 {[%clk 0:00:17]}  h6 {[%clk 0:00:33]} 28. Rc2 {[%clk 0:00:17]}  Qd1 {[%clk 0:00:31]} 29. Rc7 {[%clk 0:00:09]}  Nf4+ {[%clk 0:00:28]} 30. Kf2 {[%clk 0:00:08]}  Qh1 {[%clk 0:00:17]} 31. Qc4 {[%clk 0:00:02]}  Qg2+ {[%clk 0:00:16]} 32. Ke3 {[%clk 0:00:02]}  Nd5+ {[%clk 0:00:17]} 0-1


[Site "https://www.chess.com"]

[Event "Titled Tuesday Blitz January 03 Late 2023"]
[White "Skvortsov, Andrei"]
[Black "Forgacs, Attila Jr."]
[WhiteFideId "24108600"]
[BlackFideId "773654"]
[WhiteElo "2313"]
[BlackElo "2264"]
[Result "1-0"]
[Round "01"]
[TimeControl "180+2"]
[Date "2023.01.03"]
[WhiteClock "0:01:23"]
[BlackClock "0:01:29"]

1. c4 {[%clk 0:02:58]}  e5 {[%clk 0:02:59]} 2. Nc3 {[%clk 0:02:57]}  d6 {[%clk 0:03:00]} 3. d4 {[%clk 0:02:57]}  Nd7 {[%clk 0:03:00]} 4. e4 {[%clk 0:02:55]}  Ngf6 {[%clk 0:02:59]} 5. Nf3 {[%clk 0:02:55]}  g6 {[%clk 0:03:00]} 6. Be2 {[%clk 0:02:52]}  Bg7 {[%clk 0:03:00]} 7. O-O {[%clk 0:02:53]}  O-O {[%clk 0:03:01]} 8. Re1 {[%clk 0:02:52]}  c6 {[%clk 0:03:01]} 9. Bf1 {[%clk 0:02:53]}  Ne8 {[%clk 0:02:57]} 10. dxe5 {[%clk 0:02:49]}  dxe5 {[%clk 0:02:53]} 11. b3 {[%clk 0:02:44]}  f5 {[%clk 0:02:52]} 12. Ba3 {[%clk 0:02:44]}  Rf7 {[%clk 0:02:48]} 13. exf5 {[%clk 0:02:35]}  gxf5 {[%clk 0:02:48]} 14. Nxe5 {[%clk 0:02:23]}  Bxe5 {[%clk 0:02:43]} 15. Rxe5 {[%clk 0:02:22]}  Qf6 {[%clk 0:02:36]} 16. Rxe8+ {[%clk 0:02:19]}  Kg7 {[%clk 0:02:31]} 17. Qd2 {[%clk 0:02:08]}  Ne5 {[%clk 0:02:20]} 18. Bb2 {[%clk 0:01:44]}  Qg6 {[%clk 0:02:07]} 19. Qf4 {[%clk 0:01:31]}  Kf6 {[%clk 0:01:29]} 20. Ne4+ {[%clk 0:01:23]} 1-0


[Site "https://www.chess.com"]

[Event "Titled Tuesday Blitz January 03 Late 2023"]
[White "Melikhov, Evgeny V."]
[Black "Garcia Ramos, Daniel"]
[WhiteFideId "4122046"]
[BlackFideId "32010311"]
[WhiteElo "2269"]
[BlackElo "2442"]
[Result "0-1"]
[Round "01"]
[TimeControl "180+2"]
[Date "2023.01.03"]
[WhiteClock "0:00:18"]
[BlackClock "0:00:03"]

1. d4 {[%clk 0:02:59]}  d5 {[%clk 0:02:59]} 2. c4 {[%clk 0:02:58]}  e6 {[%clk 0:03:00]} 3. Nc3 {[%clk 0:02:59]}  Nf6 {[%clk 0:02:59]} 4. cxd5 {[%clk 0:02:59]}  Nxd5 {[%clk 0:02:59]} 5. e4 {[%clk 0:02:59]}  Nxc3 {[%clk 0:02:59]} 6. bxc3 {[%clk 0:02:59]}  c5 {[%clk 0:03:00]} 7. Nf3 {[%clk 0:03:00]}  cxd4 {[%clk 0:03:00]} 8. cxd4 {[%clk 0:03:00]}  Bb4+ {[%clk 0:03:00]} 9. Bd2 {[%clk 0:03:01]}  Bxd2+ {[%clk 0:03:00]} 10. Qxd2 {[%clk 0:03:01]}  O-O {[%clk 0:03:00]} 11. Bd3 {[%clk 0:03:01]}  Nd7 {[%clk 0:03:00]} 12. O-O {[%clk 0:03:00]}  b6 {[%clk 0:02:59]} 13. Rfe1 {[%clk 0:02:58]}  Bb7 {[%clk 0:02:58]} 14. Rad1 {[%clk 0:02:57]}  Re8 {[%clk 0:02:47]} 15. Bb1 {[%clk 0:02:45]}  a5 {[%clk 0:02:42]} 16. Qe3 {[%clk 0:02:40]}  b5 {[%clk 0:02:38]} 17. e5 {[%clk 0:02:39]}  b4 {[%clk 0:02:23]} 18. Ng5 {[%clk 0:02:37]}  h6 {[%clk 0:02:11]} 19. Ne4 {[%clk 0:02:37]}  Bd5 {[%clk 0:02:02]} 20. Nd6 {[%clk 0:02:35]}  Re7 {[%clk 0:01:54]} 21. Qd3 {[%clk 0:02:25]}  Nf8 {[%clk 0:01:51]} 22. Rc1 {[%clk 0:02:22]}  a4 {[%clk 0:01:44]} 23. Rc5 {[%clk 0:02:16]}  b3 {[%clk 0:01:16]} 24. axb3 {[%clk 0:02:11]}  axb3 {[%clk 0:01:15]} 25. Rec1 {[%clk 0:02:11]}  b2 {[%clk 0:01:14]} 26. R1c3 {[%clk 0:02:07]}  g6 {[%clk 0:00:19]} 27. Rc8 {[%clk 0:02:00]}  Rxc8 {[%clk 0:00:12]} 28. Rxc8 {[%clk 0:02:01]}  Qa5 {[%clk 0:00:11]} 29. Rb8 {[%clk 0:01:34]}  Rc7 {[%clk 0:00:09]} 30. h4 {[%clk 0:01:26]}  Rc1+ {[%clk 0:00:03]} 31. Kh2 {[%clk 0:01:25]}  Qe1 {[%clk 0:00:03]} 32. Rxb2 {[%clk 0:00:21]}  Qg1+ {[%clk 0:00:03]} 33. Kg3 {[%clk 0:00:21]}  Qxg2+ {[%clk 0:00:04]} 34. Kf4 {[%clk 0:00:20]}  g5+ {[%clk 0:00:03]} 35. hxg5 {[%clk 0:00:18]}  Qxg5# {[%clk 0:00:03]} 0-1


[Site "https://www.chess.com"]

[Event "Titled Tuesday Blitz January 03 Late 2023"]
[White "Tatarinov, Dmitry"]
[Black "Prydun, Andriy"]
[WhiteFideId "24160067"]
[BlackFideId "14145898"]
[WhiteElo "2310"]
[BlackElo "2134"]
[Result "1-0"]
[Round "01"]
[TimeControl "180+2"]
[Date "2023.01.03"]
[WhiteClock "0:01:28"]
[BlackClock "0:00:01"]

1. d4 {[%clk 0:02:59]}  Nf6 {[%clk 0:02:59]} 2. c4 {[%clk 0:02:59]}  e6 {[%clk 0:02:59]} 3. Nf3 {[%clk 0:03:00]}  c5 {[%clk 0:02:59]} 4. d5 {[%clk 0:03:00]}  Na6 {[%clk 0:02:59]} 5. Nc3 {[%clk 0:02:59]}  Nc7 {[%clk 0:02:59]} 6. e4 {[%clk 0:03:00]}  d6 {[%clk 0:02:59]} 7. h3 {[%clk 0:03:00]}  e5 {[%clk 0:02:58]} 8. g4 {[%clk 0:02:59]}  Nd7 {[%clk 0:02:57]} 9. Bd3 {[%clk 0:02:59]}  Rb8 {[%clk 0:02:57]} 10. a4 {[%clk 0:02:58]}  b6 {[%clk 0:02:56]} 11. Be3 {[%clk 0:02:58]}  Na6 {[%clk 0:02:55]} 12. g5 {[%clk 0:02:50]}  Nb4 {[%clk 0:02:53]} 13. Bb1 {[%clk 0:02:50]}  Be7 {[%clk 0:02:53]} 14. Rg1 {[%clk 0:02:48]}  Nf8 {[%clk 0:02:53]} 15. h4 {[%clk 0:02:45]}  a6 {[%clk 0:02:43]} 16. Ra3 {[%clk 0:02:41]}  Bd7 {[%clk 0:02:42]} 17. h5 {[%clk 0:02:40]}  Qc8 {[%clk 0:02:42]} 18. Nh4 {[%clk 0:02:37]}  Rg8 {[%clk 0:02:41]} 19. Qf3 {[%clk 0:02:34]}  g6 {[%clk 0:02:14]} 20. h6 {[%clk 0:02:31]}  Rb7 {[%clk 0:01:57]} 21. Qg3 {[%clk 0:02:26]}  Bd8 {[%clk 0:01:54]} 22. f4 {[%clk 0:02:26]}  Bc7 {[%clk 0:01:51]} 23. fxe5 {[%clk 0:02:25]}  dxe5 {[%clk 0:01:51]} 24. Rf1 {[%clk 0:02:25]}  Bh3 {[%clk 0:01:42]} 25. Rf2 {[%clk 0:02:20]}  Qg4 {[%clk 0:01:32]} 26. Qxg4 {[%clk 0:02:17]}  Bxg4 {[%clk 0:01:33]} 27. a5 {[%clk 0:02:15]}  Nd7 {[%clk 0:01:14]} 28. axb6 {[%clk 0:02:14]}  Bxb6 {[%clk 0:01:14]} 29. Nf3 {[%clk 0:02:11]}  Bc7 {[%clk 0:01:01]} 30. Nh2 {[%clk 0:02:08]}  Bh5 {[%clk 0:00:58]} 31. Na4 {[%clk 0:02:01]}  Bd6 {[%clk 0:00:58]} 32. Nf1 {[%clk 0:01:51]}  Rf8 {[%clk 0:00:57]} 33. Nd2 {[%clk 0:01:47]}  Rc7 {[%clk 0:00:48]} 34. Nb3 {[%clk 0:01:46]}  f6 {[%clk 0:00:44]} 35. Na5 {[%clk 0:01:41]}  fxg5 {[%clk 0:00:41]} 36. Rxf8+ {[%clk 0:01:41]}  Kxf8 {[%clk 0:00:42]} 37. Bxg5 {[%clk 0:01:41]}  Be7 {[%clk 0:00:12]} 38. Be3 {[%clk 0:01:28]}  Bh4+ {[%clk 0:00:12]} 39. Kd2 {[%clk 0:01:28]}  Ke7 {[%clk 0:00:10]} 40. Rb3 {[%clk 0:01:27]}  Kd6 {[%clk 0:00:10]} 41. Nxc5 {[%clk 0:01:27]}  Nxc5 {[%clk 0:00:10]} 42. Rxb4 {[%clk 0:01:27]}  Be7 {[%clk 0:00:05]} 43. Rb6+ {[%clk 0:01:27]}  Kd7 {[%clk 0:00:05]} 44. b4 {[%clk 0:01:28]}  Nb7 {[%clk 0:00:03]} 45. Rxb7 {[%clk 0:01:27]}  Rxb7 {[%clk 0:00:03]} 46. Nxb7 {[%clk 0:01:27]}  Bxb4+ {[%clk 0:00:01]} 47. Kd3 {[%clk 0:01:28]}  Bd1 {[%clk 0:00:01]} 48. c5 {[%clk 0:01:28]}  Kc7 {[%clk 0:00:01]} 49. c6 {[%clk 0:01:28]} 1-0


[Site "https://www.chess.com"]